[Event "FIDE World Rapid-ch Open 2018"]
[White "Bilguun, Sumiya"]
[Black "Novikov, Stanislav"]
[Site "St. Petersburg"]
[Round "14.67"]
[Annotator "ChessBase"]
[Result "1-0"]
[Date "2018.12.28"]
[WhiteElo "2497"]
[BlackElo "2540"]
[PlyCount "105"]
[TimeControl "900+10"]

1. e4 {[%emt 0:0:0]} g6 {[%emt 0:0:0]} 2. d4 {[%emt 0:0:0]} Bg7 {[%emt 0:0:0]} 3. Nc3 {[%emt 0:0:0]} c6 {[%emt 0:0:0]} 4. Nge2 {[%emt 0:0:3]} b5 {[%emt 0:0:8]} 5. a3 {[%emt 0:0:10]} d6 {[%emt 0:0:8]} 6. h3 {[%emt 0:0:0]} Nd7 {[%emt 0:0:10]} 7. g4 {[%emt 0:0:3]} Bb7 {[%emt 0:0:5]} 8. Bg2 {[%emt 0:0:2]
} a5 {[%emt 0:0:52]} 9. Ng3 {[%emt 0:0:4]} b4 {[%emt 0:0:8]} 10. Nce2 {[%emt 0:0:1]} c5 {[%emt 0:0:22]} 11. c3 {[%emt 0:0:12]} bxc3 {[%emt 0:0:25]
} 12. bxc3 {[%emt 0:0:1]} e5 {[%emt 0:0:5]} 13. d5 {[%emt 0:0:0]} Bh6 {[%emt 0:1:31]} 14. Bxh6 {[%emt 0:0:46]} Nxh6 {[%emt 0:0:1]} 15. Qd2 {[%emt 0:0:33]} Ng8 {[%emt 0:0:50]} 16. h4 {[%emt 0:1:19]} Ba6 {[%emt 0:0:54]
} 17. h5 {[%emt 0:0:18]} Rb8 {[%emt 0:0:16]} 18. g5 {[%emt 0:0:0]} c4 {[%emt 0:0:38]} 19. 0-0 {[%emt 0:1:18]} h6 {[%emt 0:2:0]} 20. f4 Qb6+ {[%emt 0:5:25]} 21. Kh2 {[%emt 0:2:36]} hxg5 {[%emt 0:1:26]} 22. fxg5 {[%emt 0:0:5]
} Nc5 {[%emt 0:0:8]} 23. Qe3 {[%emt 0:0:36]} Rh7 {[%emt 0:0:0]} 24. Qf3 {[%emt 0:0:7]} Bc8 {[%emt 0:0:12]} 25. Ng1 {[%emt 0:2:11]} Qd8 {[%emt 0:0:7]} 26. Nh3 {[%emt 0:1:38]} Bxh3 {[%emt 0:0:46]} 27. hxg6 {[%emt 0:0:35]
} fxg6 {[%emt 0:0:6]} 28. Qf8+ {[%emt 0:1:42]} Kd7 {[%emt 0:0:0]} 29. Rf7+ {[%emt 0:0:4]} Rxf7 {[%emt 0:0:0]} 30. Qxf7+ {[%emt 0:0:0]} Ne7 {[%emt 0:0:2]} 31. Bxh3+ {[%emt 0:0:2]} Kc7 {[%emt 0:0:0]} 32. Rf1 {[%emt 0:0:42]} Rb2+ {[%emt 0:0:11]} 33. Rf2 {[%emt 0:0:15]} Rxf2+ {[%emt 0:1:48]
} 34. Qxf2 {[%emt 0:0:2]} Kb6 {[%emt 0:0:6]} 35. Bf1 {[%emt 0:0:7]
} Qh8+ {[%emt 0:0:29]} 36. Kg2 {[%emt 0:0:12]} Qh4 {[%emt 0:0:0]} 37. Bxc4 {[%emt 0:1:41]} Qxg5 {[%emt 0:0:10]} 38. Qf8 {[%emt 0:0:29]} Kc7 {[%emt 0:0:20]} 39. Qa8 {[%emt 0:0:59]} Qd2+ {[%emt 0:0:12]} 40. Ne2 {[%emt 0:0:15]
} Nc8 {[%emt 0:0:19]} 41. Qxa5+ {[%emt 0:0:10]} Nb6 {[%emt 0:0:0]} 42. Qa7+ {[%emt 0:0:5]} Nb7 {[%emt 0:0:6]} 43. Ba6 {[%emt 0:0:15]} Qg5+ {[%emt 0:0:3]} 44. Kf1 {[%emt 0:0:14]} Qf6+ {[%emt 0:0:4]} 45. Kg2 {[%emt 0:0:33]
} Qg5+ {[%emt 0:0:3]} 46. Kf1 {[%emt 0:0:17]} Qf6+ {[%emt 0:0:0]} 47. Ke1 {[%emt 0:0:1]} Qh4+ {[%emt 0:0:1]} 48. Kd2 {[%emt 0:0:21]} Qg5+ {[%emt 0:0:2]} 49. Kd1 {[%emt 0:0:19]} Qe3 {[%emt 0:0:7]} 50. Qxb7+ {[%emt 0:0:11]
} Kd8 {[%emt 0:0:1]} 51. Bb5 {[%emt 0:0:23]} g5 {[%emt 0:0:0]} 52. a4 {[%emt 0:0:3]} Qc5 {[%emt 0:0:11]} 53. a5 {[%emt 0:0:13]} 1-0

[Event "FIDE World Rapid-ch Open 2018"]
[White "Miton, Kamil"]
[Black "Nozdrachev, Vladislav"]
[Site "St. Petersburg"]
[Round "14.68"]
[Annotator "ChessBase"]
[Result "1/2-1/2"]
[Date "2018.12.28"]
[WhiteElo "2588"]
[BlackElo "2486"]
[PlyCount "172"]
[TimeControl "900+10"]

1. d4 {[%emt 0:0:0]} Nf6 {[%emt 0:0:0]} 2. c4 {[%emt 0:0:0]} e6 {[%emt 0:0:0]} 3. g3 {[%emt 0:0:0]} d5 {[%emt 0:0:5]} 4. Bg2 {[%emt 0:0:0]} Be7 {[%emt 0:0:2]} 5. Nf3 {[%emt 0:0:3]} 0-0 {[%emt 0:0:3]} 6. 0-0 {[%emt 0:0:0]} dxc4 {[%emt 0:0:2]} 7. Nc3 {[%emt 0:0:3]} Qd6 {[%emt 0:0:52]} 8. Bf4 {[%emt 0:1:2]} Qa6 {[%emt 0:0:27]} 9. e4 {[%emt 0:0:41]} b5 {[%emt 0:0:0]} 10. a4 {[%emt 0:0:30]} bxa4 {[%emt 0:0:54]} 11. Rxa4 {[%emt 0:0:6]} Qb6 {[%emt 0:0:3]} 12. Qb1 {[%emt 0:2:46]} Nc6 {[%emt 0:0:36]} 13. Nd2 {[%emt 0:1:16]
} Nxd4 {[%emt 0:0:57]} 14. Nxc4 {[%emt 0:1:12]} Qc5 {[%emt 0:0:0]} 15. Ne5 {[%emt 0:1:32]} Bb7 {[%emt 0:2:56]} 16. Re1 {[%emt 0:1:1]} Rfd8 {[%emt 0:0:41]} 17. Rc4 {[%emt 0:0:54]} Qb6 {[%emt 0:1:4]} 18. b4 {[%emt 0:0:45]
} Rac8 {[%emt 0:1:35]} 19. Be3 {[%emt 0:0:49]} c5 {[%emt 0:0:0]} 20. Na4 {[%emt 0:1:3]} Qc7 {[%emt 0:0:51]} 21. bxc5 {[%emt 0:0:14]} Nc6 {[%emt 0:0:18]} 22. Nxc6 {[%emt 0:0:14]} Bxc6 {[%emt 0:0:5]} 23. Nc3 {[%emt 0:0:11]
} Rb8 {[%emt 0:0:8]} 24. Qc2 {[%emt 0:0:24]} Ng4 {[%emt 0:0:0]} 25. Bf4 {[%emt 0:0:15]} Ne5 {[%emt 0:0:49]} 26. Nd5 {[%emt 0:0:7]} exd5 {[%emt 0:0:49]} 27. exd5 {[%emt 0:0:1]} Bxd5 {[%emt 0:0:51]} 28. Bxe5 {[%emt 0:0:21]} Qa5 {[%emt 0:0:2]} 29. Bc3 {[%emt 0:1:19]} Qa6 {[%emt 0:0:0]} 30. Bxd5 {[%emt 0:0:25]} Rxd5 {[%emt 0:0:1]} 31. Bxg7 {[%emt 0:0:26]} Bg5 {[%emt 0:1:6]} 32. Ba1 {[%emt 0:0:36]} Qg6 {[%emt 0:0:25]} 33. Qc3 {[%emt 0:0:11]
} f6 {[%emt 0:0:2]} 34. Qf3 {[%emt 0:0:28]} Qd3 {[%emt 0:0:0]} 35. Qxd3 {[%emt 0:0:5]} Rxd3 {[%emt 0:0:1]} 36. h4 {[%emt 0:0:13]} Bd2 {[%emt 0:0:2]} 37. Rd1 {[%emt 0:0:5]} Kf7 {[%emt 0:0:9]} 38. c6 {[%emt 0:0:4]
} Rd6 {[%emt 0:0:12]} 39. Bc3 {[%emt 0:0:23]} Bf4 {[%emt 0:0:0]} 40. Ra1 {[%emt 0:0:5]} Bd2 {[%emt 0:0:27]} 41. Rxa7+ {[%emt 0:0:8]} Kg6 {[%emt 0:0:1]} 42. Rd7 {[%emt 0:0:35]} Rxd7 {[%emt 0:0:14]} 43. cxd7 {[%emt 0:0:1]
} Bxc3 {[%emt 0:0:1]} 44. Rc8 {[%emt 0:0:6]} Rb1+ {[%emt 0:0:0]} 45. Kg2 {[%emt 0:0:4]} Ba5 {[%emt 0:0:2]} 46. Ra8 {[%emt 0:0:28]} Rd1 {[%emt 0:0:9]} 47. Rxa5 {[%emt 0:0:3]} Rxd7 {[%emt 0:0:2]} 48. g4 {[%emt 0:0:9]
} Rd4 {[%emt 0:0:16]} 49. Kg3 {[%emt 0:0:3]} Rb4 {[%emt 0:0:0]} 50. f3 {[%emt 0:0:12]} Rb7 {[%emt 0:0:24]} 51. Ra6 {[%emt 0:0:16]} Kg7 {[%emt 0:0:11]} 52. g5 {[%emt 0:0:21]} fxg5 {[%emt 0:0:9]} 53. hxg5 {[%emt 0:0:2]
} Rb4 {[%emt 0:0:13]} 54. f4 {[%emt 0:0:5]} Rc4 {[%emt 0:0:0]} 55. Kg4 {[%emt 0:0:2]} Rc8 {[%emt 0:0:25]} 56. Ra7+ {[%emt 0:0:9]} Kg8 {[%emt 0:0:2]} 57. Re7 {[%emt 0:0:32]} Ra8 {[%emt 0:0:5]} 58. Kf5 {[%emt 0:0:7]
} Ra4 {[%emt 0:0:13]} 59. Re4 {[%emt 0:0:3]} Ra6 {[%emt 0:0:0]} 60. Re6 {[%emt 0:0:18]} Ra4 {[%emt 0:0:1]} 61. Re7 {[%emt 0:0:6]} Rb4 {[%emt 0:0:4]} 62. Ke5 {[%emt 0:0:10]} Rb5+ {[%emt 0:0:27]} 63. Kf6 {[%emt 0:0:3]
} Rb6+ {[%emt 0:0:1]} 64. Re6 {[%emt 0:0:2]} Rb8 {[%emt 0:0:0]} 65. f5 {[%emt 0:0:15]} Ra8 {[%emt 0:0:6]} 66. Rc6 {[%emt 0:0:27]} Rf8+ {[%emt 0:0:7]} 67. Ke5 {[%emt 0:0:3]} Re8+ {[%emt 0:0:4]} 68. Kf4 {[%emt 0:0:16]
} Re1 {[%emt 0:0:7]} 69. Rc8+ {[%emt 0:0:26]} Kf7 {[%emt 0:0:0]} 70. Rc7+ {[%emt 0:0:1]} Kg8 {[%emt 0:0:1]} 71. f6 {[%emt 0:0:14]} Rf1+ {[%emt 0:0:1]} 72. Ke4 {[%emt 0:0:13]} h6 {[%emt 0:0:44]} 73. Rc8+ {[%emt 0:0:38]
} Kh7 {[%emt 0:0:4]} 74. Rc7+ {[%emt 0:0:24]} Kg6 {[%emt 0:0:0]} 75. Rg7+ {[%emt 0:0:12]} Kh5 {[%emt 0:0:2]} 76. gxh6 {[%emt 0:0:13]} Kxh6 {[%emt 0:0:9]} 77. Ke5 {[%emt 0:0:1]} Ra1 {[%emt 0:0:32]} 78. Rg8 {[%emt 0:0:20]
} Ra5+ {[%emt 0:0:2]} 79. Ke4 {[%emt 0:0:9]} Ra4+ {[%emt 0:0:0]} 80. Kd5 {[%emt 0:0:7]} Ra5+ {[%emt 0:0:1]} 81. Ke6 {[%emt 0:0:13]} Ra6+ {[%emt 0:0:1]} 82. Ke5 {[%emt 0:0:9]} Ra5+ {[%emt 0:0:1]} 83. Ke4 {[%emt 0:0:2]
} Ra4+ {[%emt 0:0:0]} 84. Ke3 {[%emt 0:0:19]} Ra3+ {[%emt 0:0:0]} 85. Kd4 {[%emt 0:0:9]} Ra4+ {[%emt 0:0:2]} 86. Kc5 {[%emt 0:0:11]} Ra5+ {[%emt 0:0:3]} 1/2-1/2

[Event "FIDE World Rapid-ch Open 2018"]
[White "Tregubov, Pavel V."]
[Black "Belyakov, Bogdan"]
[Site "St. Petersburg"]
[Round "14.69"]
[Annotator "ChessBase"]
[Result "1/2-1/2"]
[Date "2018.12.28"]
[WhiteElo "2592"]
[BlackElo "2459"]
[PlyCount "131"]
[TimeControl "900+10"]

1. d4 {[%emt 0:0:0]} Nf6 {[%emt 0:0:0]} 2. c4 {[%emt 0:0:0]} g6 {[%emt 0:0:0]} 3. g3 {[%emt 0:0:0]} Bg7 {[%emt 0:0:0]} 4. Bg2 {[%emt 0:0:0]} 0-0 {[%emt 0:0:0]} 5. Nc3 {[%emt 0:0:0]} d6 {[%emt 0:0:0]} 6. Nf3 {[%emt 0:0:0]} Nc6 {[%emt 0:0:0]} 7. 0-0 {[%emt 0:0:3]} a6 {[%emt 0:0:0]} 8. h3 {[%emt 0:0:8]} Bd7 {[%emt 0:0:2]} 9. e4 {[%emt 0:0:4]} e5 {[%emt 0:0:7]
} 10. dxe5 {[%emt 0:0:11]} Nxe5 {[%emt 0:0:8]} 11. Nxe5 {[%emt 0:0:7]} dxe5 {[%emt 0:0:2]} 12. Be3 {[%emt 0:0:13]} Be6 {[%emt 0:0:44]} 13. Qe2 {[%emt 0:0:53]
} Qc8 {[%emt 0:1:15]} 14. Kh2 {[%emt 0:0:6]} Rd8 {[%emt 0:0:0]} 15. Nd5 {[%emt 0:0:7]} Nxd5 {[%emt 0:1:30]} 16. cxd5 {[%emt 0:0:11]} Bd7 {[%emt 0:0:1]} 17. Rfd1 {[%emt 0:0:37]} Bf8 {[%emt 0:1:3]} 18. Rac1 {[%emt 0:0:1]
} Bd6 {[%emt 0:0:1]} 19. Bg5 {[%emt 0:0:58]} Re8 {[%emt 0:0:0]} 20. Bf6 {[%emt 0:0:8]} Qb8 {[%emt 0:0:13]} 21. Qe3 {[%emt 0:0:19]} Qa7 {[%emt 0:0:13]} 22. Qh6 {[%emt 0:1:23]} Bf8 {[%emt 0:0:2]} 23. Qd2 {[%emt 0:1:40]
} Qb6 {[%emt 0:0:22]} 24. Bg5 {[%emt 0:0:9]} Rac8 {[%emt 0:0:0]} 25. Be3 {[%emt 0:0:18]} Qf6 {[%emt 0:0:3]} 26. Rc2 {[%emt 0:0:28]} b6 {[%emt 0:1:26]} 27. Rdc1 {[%emt 0:0:28]} Bd6 {[%emt 0:0:3]} 28. Bg5 {[%emt 0:1:10]
} Qg7 {[%emt 0:0:1]} 29. Bh6 {[%emt 0:0:2]} Qh8 {[%emt 0:0:0]} 30. Bf1 {[%emt 0:1:10]} a5 {[%emt 0:0:12]} 31. Ba6 {[%emt 0:0:16]} Ra8 {[%emt 0:1:26]} 32. Bb7 {[%emt 0:0:14]} Rab8 {[%emt 0:0:2]} 33. Bc6 {[%emt 0:0:1]
} Bxc6 {[%emt 0:0:29]} 34. Rxc6 {[%emt 0:0:2]} Qf6 {[%emt 0:0:0]} 35. Bg5 {[%emt 0:1:16]} Qf3 {[%emt 0:1:43]} 36. Re1 {[%emt 0:0:36]} Bb4 {[%emt 0:0:28]} 37. Qe2 {[%emt 0:0:1]} Qxe2 {[%emt 0:0:13]} 38. Rxe2 {[%emt 0:0:1]
} Bd6 {[%emt 0:0:9]} 39. Bf6 {[%emt 0:0:1]} b5 {[%emt 0:0:0]} 40. Rec2 {[%emt 0:2:11]} Rb7 {[%emt 0:0:43]} 41. Ra6 {[%emt 0:0:13]} a4 {[%emt 0:0:7]} 42. h4 {[%emt 0:0:9]} Kf8 {[%emt 0:2:59]} 43. Kg2 {[%emt 0:0:0]} Reb8 {[%emt 0:0:6]} 44. Rcc6 {[%emt 0:0:14]} Ke8 {[%emt 0:0:9]} 45. f4 {[%emt 0:0:54]} exf4 {[%emt 0:0:18]} 46. e5 {[%emt 0:0:1]} Be7 {[%emt 0:0:32]
} 47. Bxe7 {[%emt 0:0:16]} Kxe7 {[%emt 0:0:30]} 48. gxf4 {[%emt 0:0:2]
} Kd7 {[%emt 0:0:16]} 49. Kf3 {[%emt 0:0:13]} h6 {[%emt 0:0:0]} 50. Ke4 {[%emt 0:0:14]} Rg8 {[%emt 0:0:2]} 51. Rf6 {[%emt 0:1:38]} Ke7 {[%emt 0:0:7]} 52. Rac6 {[%emt 0:0:8]} Rd8 {[%emt 0:0:34]} 53. Rxc7+ {[%emt 0:2:6]
} Rxc7 {[%emt 0:0:25]} 54. d6+ {[%emt 0:0:2]} Ke8 {[%emt 0:0:0]} 55. dxc7 {[%emt 0:0:1]} Rc8 {[%emt 0:0:1]} 56. Rc6 {[%emt 0:0:2]} Kd7 {[%emt 0:0:1]} 57. Kd5 {[%emt 0:0:1]} b4 {[%emt 0:0:31]} 58. Rf6 {[%emt 0:0:27]
} Kxc7 {[%emt 0:0:7]} 59. Rc6+ {[%emt 0:0:27]} Kd7 {[%emt 0:0:0]} 60. Rxc8 {[%emt 0:0:1]} Kxc8 {[%emt 0:0:1]} 61. Kc4 {[%emt 0:0:0]
} Kd7 {[%emt 0:0:9]} 62. Kxb4 {[%emt 0:0:2]} Ke6 {[%emt 0:0:1]} 63. Kxa4 {[%emt 0:0:35]} Kf5 {[%emt 0:0:1]} 64. b4 {[%emt 0:0:1]} Kxf4 {[%emt 0:0:0]} 65. b5 {[%emt 0:0:0]} Kxe5 {[%emt 0:0:1]} 66. Ka5 {[%emt 0:0:1]} 1/2-1/2

[Event "FIDE World Rapid-ch Open 2018"]
[White "Gareyev, Timur"]
[Black "Dzhumagaliev, Yan"]
[Site "St. Petersburg"]
[Round "14.70"]
[Annotator "ChessBase"]
[Result "1-0"]
[Date "2018.12.28"]
[WhiteElo "2569"]
[BlackElo "2410"]
[PlyCount "103"]
[TimeControl "900+10"]

1. Nf3 {[%emt 0:0:29]} e6 {[%emt 0:0:0]} 2. b3 {[%emt 0:0:16]} b6 {[%emt 0:0:0]} 3. a4 {[%emt 0:0:11]} a6 {[%emt 0:0:11]} 4. e3 {[%emt 0:0:37]} Bb7 {[%emt 0:0:2]
} 5. Bb2 {[%emt 0:0:7]} Nf6 {[%emt 0:0:3]} 6. Rg1 {[%emt 0:0:0]} h5 {[%emt 0:0:15]} 7. g3 {[%emt 0:1:1]} d5 {[%emt 0:0:4]} 8. h4 {[%emt 0:0:38]
} c5 {[%emt 0:0:4]} 9. Bh3 {[%emt 0:0:4]} Nbd7 {[%emt 0:0:0]} 10. d3 {[%emt 0:0:15]} Qc7 {[%emt 0:0:28]} 11. Nbd2 {[%emt 0:0:8]} Bd6 {[%emt 0:1:32]} 12. Qe2 {[%emt 0:0:4]} Ne5 {[%emt 0:0:6]} 13. Ng5 {[%emt 0:1:32]
} Neg4 {[%emt 0:1:35]} 14. e4 {[%emt 0:0:12]} d4 {[%emt 0:0:0]} 15. Nc4 {[%emt 0:0:16]} b5 {[%emt 0:0:11]} 16. Nxd6+ {[%emt 0:0:27]} Qxd6 {[%emt 0:0:2]} 17. f3 {[%emt 0:2:3]} Ne3 {[%emt 0:0:20]} 18. Bc1 {[%emt 0:0:10]
} c4 {[%emt 0:1:53]} 19. bxc4 {[%emt 0:0:2]} bxc4 {[%emt 0:0:0]} 20. Bxe3 {[%emt 0:0:2]} dxe3 {[%emt 0:0:10]} 21. Qxe3 {[%emt 0:0:7]} cxd3 {[%emt 0:0:4]} 22. cxd3 {[%emt 0:0:10]} Rd8 {[%emt 0:0:53]} 23. Ke2 {[%emt 0:0:55]
} Nd7 {[%emt 0:0:29]} 24. d4 {[%emt 0:0:18]} Nf8 {[%emt 0:0:0]} 25. Rgb1 {[%emt 0:0:11]} Bc6 {[%emt 0:0:37]} 26. d5 {[%emt 0:0:6]} Bd7 {[%emt 0:0:45]} 27. e5 {[%emt 0:0:55]} Qxd5 {[%emt 0:0:4]} 28. Qf4 {[%emt 0:0:19]
} f5 {[%emt 0:2:13]} 29. exf6 {[%emt 0:0:13]} Ng6 {[%emt 0:0:0]} 30. f7+ {[%emt 0:0:13]} Ke7 {[%emt 0:0:9]} 31. Qb4+ {[%emt 0:0:22]} Kf6 {[%emt 0:0:0]} 32. Rd1 {[%emt 0:0:21]} Qe5+ {[%emt 0:0:3]} 33. Kf2 {[%emt 0:0:37]
} Rb8 {[%emt 0:0:1]} 34. Ne4+ {[%emt 0:0:1]} Kxf7 {[%emt 0:0:0]} 35. Rxd7+ {[%emt 0:0:2]} Kg8 {[%emt 0:0:2]} 36. Nf6+ Qxf6 {[%emt 0:0:0]} 37. Qxb8+ {[%emt 0:1:32]} Kh7 {[%emt 0:0:1]} 38. Qb1 {[%emt 0:0:13]
} Rf8 {[%emt 0:0:21]} 39. Ra3 {[%emt 0:1:27]} Kh8 {[%emt 0:0:1]} 40. Rd6 {[%emt 0:0:51]
} Nxh4 {[%emt 0:0:21]} 41. gxh4 {[%emt 0:0:20]} Qxh4+ {[%emt 0:0:0]} 42. Kg2 {[%emt 0:0:32]} Qg5+ {[%emt 0:0:1]} 43. Kh1 {[%emt 0:0:43]} Qg3 {[%emt 0:0:1]} 44. Rd2 {[%emt 0:0:18]} Qxh3+ {[%emt 0:0:36]} 45. Rh2 {[%emt 0:0:1]
} Qg3 {[%emt 0:0:1]} 46. Rxh5+ {[%emt 0:0:11]} Kg8 {[%emt 0:0:0]} 47. Qe4 {[%emt 0:1:4]} Qd6 {[%emt 0:0:51]} 48. Rd3 {[%emt 0:0:4]} Qb6 {[%emt 0:0:1]} 49. Rd7 {[%emt 0:0:33]} Rf5 {[%emt 0:0:1]} 50. Qa8+ {[%emt 0:0:9]
} Rf8 {[%emt 0:0:3]} 51. Qxf8+ {[%emt 0:0:6]} Kxf8 {[%emt 0:0:0]} 52. Rh8# {[%emt 0:0:2]} 1-0

[Event "FIDE World Rapid-ch Open 2018"]
[White "Teterev, Vitaly"]
[Black "Gabrielian, Artur"]
[Site "St. Petersburg"]
[Round "14.71"]
[Annotator "ChessBase"]
[Result "1-0"]
[Date "2018.12.28"]
[WhiteElo "2486"]
[BlackElo "2499"]
[PlyCount "79"]
[TimeControl "900+10"]

1. Nf3 {[%emt 0:0:0]} c5 {[%emt 0:0:0]} 2. e4 {[%emt 0:0:0]} d6 {[%emt 0:0:0]} 3. Bc4 {[%emt 0:0:0]} Nc6 {[%emt 0:0:1]} 4. 0-0 {[%emt 0:0:6]} Nf6 {[%emt 0:0:4]} 5. Qe2 {[%emt 0:0:20]} Bg4 {[%emt 0:1:33]} 6. c3 {[%emt 0:0:34]
} e6 {[%emt 0:0:2]} 7. h3 {[%emt 0:0:25]} Bxf3 {[%emt 0:0:4]
} 8. Qxf3 {[%emt 0:0:1]} Be7 {[%emt 0:0:2]} 9. Bb3 {[%emt 0:0:13]} 0-0 {[%emt 0:0:8]
} 10. d3 {[%emt 0:0:1]} b5 {[%emt 0:0:27]} 11. Be3 {[%emt 0:0:0]} a5 {[%emt 0:1:29]} 12. a4 {[%emt 0:0:8]} c4 {[%emt 0:1:58]} 13. dxc4 {[%emt 0:0:56]} bxc4 {[%emt 0:0:3]} 14. Bxc4 {[%emt 0:0:45]} Ne5 {[%emt 0:0:1]
} 15. Qe2 {[%emt 0:0:3]} Nxe4 {[%emt 0:0:4]} 16. Bb5 {[%emt 0:0:5]
} d5 {[%emt 0:0:17]} 17. Bd4 {[%emt 0:0:46]} Ng6 {[%emt 0:0:0]} 18. Nd2 {[%emt 0:1:9]} Nf4 {[%emt 0:1:51]} 19. Qe3 {[%emt 0:0:48]} Nxd2 {[%emt 0:0:37]} 20. Qxd2 {[%emt 0:0:1]} Bd6 {[%emt 0:0:2]} 21. Be3 {[%emt 0:0:46]
} Ng6 {[%emt 0:0:43]} 22. b4 {[%emt 0:0:48]} Qc7 {[%emt 0:0:0]} 23. bxa5 {[%emt 0:0:47]} Qxa5 {[%emt 0:0:8]} 24. Rfc1 {[%emt 0:2:28]} Rfd8 {[%emt 0:1:42]} 25. f4 {[%emt 0:1:55]} Bc7 {[%emt 0:0:57]} 26. Qf2 {[%emt 0:0:23]
} Rab8 {[%emt 0:0:17]} 27. f5 {[%emt 0:0:29]} exf5 {[%emt 0:0:0]} 28. Qxf5 {[%emt 0:0:7]} Bb6 {[%emt 0:0:6]} 29. Bxb6 {[%emt 0:0:50]} Rxb6 {[%emt 0:0:14]} 30. c4 {[%emt 0:0:38]} Rf6 {[%emt 0:0:18]} 31. Qc2 {[%emt 0:1:37]
} dxc4 {[%emt 0:0:14]} 32. Qxc4 {[%emt 0:0:15]} Qb6+ {[%emt 0:0:0]} 33. Kh1 {[%emt 0:0:15]} Rf4 {[%emt 0:0:44]} 34. Qc6 {[%emt 0:0:17]} Qf2 {[%emt 0:0:26]} 35. a5 {[%emt 0:0:29]} Rf6 {[%emt 0:0:39]} 36. Qb7 {[%emt 0:0:27]
} h5 {[%emt 0:1:2]} 37. a6 {[%emt 0:0:45]} Rb6 {[%emt 0:0:1]
} 38. Qc7 {[%emt 0:0:23]} Ra8 {[%emt 0:0:42]} 39. Rf1 {[%emt 0:0:19]} Qd4 {[%emt 0:0:18]
} 40. Rad1 {[%emt 0:0:18]} 1-0

[Event "FIDE World Rapid-ch Open 2018"]
[White "Kabanov, Nikolai"]
[Black "Rechlis, Gad"]
[Site "St. Petersburg"]
[Round "14.72"]
[Annotator "ChessBase"]
[Result "1-0"]
[Date "2018.12.28"]
[WhiteElo "2450"]
[BlackElo "2521"]
[PlyCount "151"]
[TimeControl "900+10"]

1. e4 {[%emt 0:0:0]} c5 {[%emt 0:0:12]} 2. Nf3 {[%emt 0:0:0]} d6 {[%emt 0:0:0]} 3. Bb5+ {[%emt 0:0:0]} Bd7 {[%emt 0:0:6]} 4. c4 {[%emt 0:0:2]} Nc6 {[%emt 0:1:8]} 5. Nc3 {[%emt 0:0:15]} Nf6 {[%emt 0:1:44]} 6. d4 {[%emt 0:0:22]
} cxd4 {[%emt 0:0:2]} 7. Nxd4 {[%emt 0:0:1]} g6 {[%emt 0:0:0]} 8. f3 {[%emt 0:0:34]} Nxd4 {[%emt 0:0:44]} 9. Qxd4 Bg7 10. Bg5 {[%emt 0:0:0]} 0-0 {[%emt 0:0:7]} 11. Qd2 {[%emt 0:0:15]} Rc8 {[%emt 0:0:6]} 12. Rc1 {[%emt 0:0:33]} Be6 {[%emt 0:4:22]} 13. b3 {[%emt 0:0:4]} a6 {[%emt 0:0:0]} 14. Ba4 {[%emt 0:0:1]} Rb8 {[%emt 0:1:50]} 15. 0-0 {[%emt 0:0:43]} Qa5 {[%emt 0:0:32]} 16. a3 {[%emt 0:4:35]} Rfc8 {[%emt 0:2:32]} 17. b4 {[%emt 0:0:46]
} Qd8 {[%emt 0:0:36]} 18. Nd5 {[%emt 0:0:7]} Bxd5 {[%emt 0:0:0]} 19. exd5 {[%emt 0:0:47]} b5 {[%emt 0:0:13]} 20. Bb3 {[%emt 0:0:15]} Nd7 {[%emt 0:0:31]} 21. Rfe1 {[%emt 0:1:12]} bxc4 {[%emt 0:0:22]} 22. Bxc4 {[%emt 0:1:50]
} a5 {[%emt 0:0:3]} 23. b5 {[%emt 0:2:7]} Bf6 {[%emt 0:0:37]
} 24. Be3 {[%emt 0:0:19]} h5 {[%emt 0:0:16]} 25. Bf1 {[%emt 0:0:16]} Nc5 {[%emt 0:0:5]
} 26. Qf2 {[%emt 0:0:34]} Qd7 {[%emt 0:0:41]} 27. Kh1 {[%emt 0:0:0]} Qf5 {[%emt 0:0:22]} 28. Red1 {[%emt 0:0:24]} Na4 {[%emt 0:0:12]} 29. Rc6 {[%emt 0:0:54]} Nc3 {[%emt 0:0:3]} 30. Rc1 {[%emt 0:0:20]} Nxd5 {[%emt 0:0:7]
} 31. Ba7 {[%emt 0:1:16]} Rxc6 {[%emt 0:0:10]} 32. bxc6 {[%emt 0:0:3]
} Ra8 {[%emt 0:0:54]} 33. c7 {[%emt 0:0:20]} Rc8 34. Bb8 {[%emt 0:0:2]
} Qf4 {[%emt 0:0:23]} 35. Qe1 {[%emt 0:0:19]} Be5 {[%emt 0:0:0]} 36. g3 {[%emt 0:0:1]} Qxf3+ {[%emt 0:0:2]} 37. Bg2 {[%emt 0:0:0]} Qb3 {[%emt 0:0:1]} 38. Qe4 {[%emt 0:0:33]} Nxc7 {[%emt 0:0:11]} 39. Rb1 {[%emt 0:0:16]
} Qa2 {[%emt 0:0:6]} 40. Qb7 {[%emt 0:0:4]} Ne8 {[%emt 0:0:0]} 41. Bd5 {[%emt 0:0:7]} Qc2 {[%emt 0:0:13]} 42. Rf1 {[%emt 0:0:1]} Nf6 {[%emt 0:0:5]} 43. Bb3 {[%emt 0:0:4]} Qd3 {[%emt 0:0:6]} 44. Qxc8+ {[%emt 0:0:2]
} Kg7 {[%emt 0:0:1]} 45. Qc4 {[%emt 0:0:2]} Qe3 {[%emt 0:0:0]} 46. Qxf7+ {[%emt 0:0:12]} Kh6 {[%emt 0:0:1]} 47. Qc4 {[%emt 0:0:26]} Ne4 {[%emt 0:0:36]} 48. Ba7 {[%emt 0:0:16]} Nxg3+ {[%emt 0:0:18]} 49. hxg3 {[%emt 0:0:9]
} Qxg3 {[%emt 0:0:5]} 50. Qc1+ {[%emt 0:0:17]} g5 {[%emt 0:0:0]} 51. Qc2 {[%emt 0:0:19]} Qh3+ {[%emt 0:0:6]} 52. Kg1 {[%emt 0:0:1]} Qg3+ {[%emt 0:0:1]} 53. Qg2 {[%emt 0:0:1]} Qxb3 {[%emt 0:0:1]} 54. Qf3 {[%emt 0:0:8]
} Qe6 {[%emt 0:0:20]} 55. Be3 {[%emt 0:0:13]} Bf6 {[%emt 0:0:0]} 56. a4 {[%emt 0:0:7]} Qc4 {[%emt 0:0:8]} 57. Qf5 {[%emt 0:0:15]} Qxa4 {[%emt 0:0:11]} 58. Qe6 {[%emt 0:0:21]} Qg4+ {[%emt 0:0:24]} 59. Qxg4 {[%emt 0:0:3]
} hxg4 {[%emt 0:0:0]} 60. Rf5 {[%emt 0:0:12]} a4 {[%emt 0:0:0]} 61. Ra5 {[%emt 0:0:2]} Kg6 {[%emt 0:0:4]} 62. Kg2 {[%emt 0:0:3]} Be5 {[%emt 0:0:16]} 63. Rxa4 {[%emt 0:0:5]} Kf5 {[%emt 0:0:1]} 64. Ra7 {[%emt 0:0:5]
} e6 {[%emt 0:0:9]} 65. Rf7+ {[%emt 0:0:6]} Bf6 {[%emt 0:0:0]} 66. Bd4 {[%emt 0:0:8]} e5 {[%emt 0:0:1]} 67. Bb6 {[%emt 0:0:9]} Ke6 {[%emt 0:0:5]} 68. Rf8 {[%emt 0:0:6]} Be7 {[%emt 0:0:9]} 69. Re8 {[%emt 0:0:2]
} Kf7 {[%emt 0:0:3]} 70. Ra8 {[%emt 0:0:3]} Ke6 {[%emt 0:0:0]} 71. Bd8 {[%emt 0:0:1]} Bxd8 {[%emt 0:0:19]} 72. Rxd8 {[%emt 0:0:2]} e4 {[%emt 0:0:8]} 73. Kg3 {[%emt 0:0:20]} Ke5 {[%emt 0:0:23]} 74. Kxg4 {[%emt 0:0:8]
} d5 {[%emt 0:0:17]} 75. Kxg5 {[%emt 0:0:18]} Kd4 {[%emt 0:0:0]} 76. Kf4 {[%emt 0:0:4]} 1-0

[Event "FIDE World Rapid-ch Open 2018"]
[White "Reshetnikov, Alexey"]
[Black "Kobo, Ori"]
[Site "St. Petersburg"]
[Round "14.73"]
[Annotator "ChessBase"]
[Result "1-0"]
[Date "2018.12.28"]
[WhiteElo "2492"]
[BlackElo "2494"]
[PlyCount "83"]
[TimeControl "900+10"]

1. c4 {[%emt 0:0:0]} b6 {[%emt 0:0:0]} 2. Nf3 {[%emt 0:0:3]} Bb7 {[%emt 0:0:0]
} 3. g3 {[%emt 0:0:2]} Bxf3 {[%emt 0:0:1]} 4. exf3 {[%emt 0:0:0]} c5 {[%emt 0:0:2]} 5. f4 {[%emt 0:0:12]} Nc6 {[%emt 0:0:8]} 6. Bg2 {[%emt 0:0:6]} Rc8 {[%emt 0:0:31]} 7. b3 {[%emt 0:0:21]} Nf6 {[%emt 0:0:0]} 8. Bb2 {[%emt 0:0:3]} e6 {[%emt 0:0:3]} 9. 0-0 {[%emt 0:1:0]} Be7 {[%emt 0:0:51]
} 10. Na3 {[%emt 0:1:53]} 0-0 {[%emt 0:1:31]} 11. Nc2 {[%emt 0:0:0]} d5 {[%emt 0:0:3]} 12. d3 {[%emt 0:0:3]} Qd7 {[%emt 0:2:7]} 13. Qf3 {[%emt 0:0:48]} Rfd8 {[%emt 0:0:17]} 14. Rad1 {[%emt 0:0:13]} d4 {[%emt 0:2:0]
} 15. Rfe1 {[%emt 0:0:16]} a6 {[%emt 0:0:20]} 16. g4 {[%emt 0:0:0]} b5 {[%emt 0:0:55]} 17. h4 {[%emt 0:0:52]} Ne8 {[%emt 0:1:2]} 18. Bc1 {[%emt 0:2:28]} Nd6 {[%emt 0:0:13]} 19. Bh3 {[%emt 0:0:43]} a5 {[%emt 0:0:0]} 20. Kh1 {[%emt 0:2:22]} a4 {[%emt 0:0:12]} 21. f5 exf5 {[%emt 0:0:0]} 22. gxf5 {[%emt 0:1:8]} Bf6 {[%emt 0:0:34]} 23. Bg5 {[%emt 0:0:2]} Kh8 {[%emt 0:1:27]} 24. Na3 {[%emt 0:0:42]} axb3 {[%emt 0:0:39]} 25. axb3 {[%emt 0:0:6]
} Na5 {[%emt 0:0:25]} 26. Qf4 {[%emt 0:0:26]} Bxg5 {[%emt 0:0:0]} 27. hxg5 {[%emt 0:0:9]} Nxb3 {[%emt 0:0:19]} 28. Nxb5 {[%emt 0:0:37]} Nxb5 29. cxb5 f6 {[%emt 0:0:45]} 30. Re6 {[%emt 0:0:35]} Rf8 {[%emt 0:0:22]} 31. b6 {[%emt 0:0:9]} c4 {[%emt 0:0:10]} 32. dxc4 {[%emt 0:0:16]} Rxc4 {[%emt 0:0:12]
} 33. Bg2 {[%emt 0:0:19]} Nc5 {[%emt 0:0:5]} 34. Rd6 {[%emt 0:0:0]} Qe7 {[%emt 0:0:7]} 35. gxf6 {[%emt 0:0:7]} gxf6 {[%emt 0:0:5]} 36. R6xd4 {[%emt 0:0:7]} Rc2 {[%emt 0:0:13]} 37. Qc7 {[%emt 0:0:18]} Qe2 {[%emt 0:0:21]
} 38. Rd8 {[%emt 0:0:6]} Qh5+ {[%emt 0:0:9]} 39. Kg1 {[%emt 0:0:11]
} Qh6 {[%emt 0:0:11]} 40. Rxf8+ {[%emt 0:0:3]} Qxf8 {[%emt 0:0:0]} 41. Rd8 {[%emt 0:0:8]} Rc1+ {[%emt 0:0:2]} 42. Kh2 {[%emt 0:0:5]} 1-0